{"text_format":"1","workbook":"xlsx","n_sheets":11,"sheets":["Form Instructions","Customer Information","Project Information","Building Tune Up Input","System Optimization Input","Lookups","Sheet1","ProjectInfo Validation","Terms and Conditions","Requirements & Incentives","Version Tracking"],"not_rendered":{"charts":0,"images":3,"macros":1,"external_links":0,"defined_names":1655,"comments":1,"pivot_tables":0},"unopened":[],"bounds":{"document_bytes":16777216,"sheet_cells":100000,"rows_first":2000,"rows_last":500,"rows_between":2000,"halvings":0,"cell_chars":16384,"cell_head_chars":4096},"cells_cut":0,"cells_raw":0,"read":"whole","date_system":"1900"}

{"sheet":"Form Instructions","index":0,"n_rows":31,"n_cols":18,"rows_kept":31,"cut":false,"hidden":false,"merged":[[30,2,30,10],[30,11,30,18],[9,4,9,16],[9,17,9,18],[12,1,12,18],[14,1,14,8],[15,1,16,7],[15,10,16,17],[14,10,14,17],[24,1,24,18],[22,1,22,18],[20,1,20,18],[25,2,25,17],[23,2,23,17],[21,2,21,17],[26,1,26,18],[27,2,27,17],[28,2,28,17],[1,4,1,15],[3,6,3,14],[4,6,4,14],[5,4,6,5],[5,7,6,8],[5,10,6,11],[5,13,6,14],[2,4,2,15],[19,1,19,18]]}
[]
[null,null,null,null,"Building Tune-up/System Optimization Application"]
[null,null,null,null,"Dominion Energy South Carolina, Inc."]
[null,null,null,null,null,null,"Use Buttons Below to Navigate the Application"]
[]
[null,null,null,null,"Customer Information",null,null,"Project Information",null,null,"Requirements & Incentives",null,null,"Terms & \nConditions"]
[]
[]
[]
[null,null,null,null,null,null,null,null,null,null,null,null,null,null,null,null,null,{"$f":"\"Version # \"&'Version Tracking'!B2","v":"Version # 15.3"}]
[]
[null,"Application and Instructions"]
[null,"The Building Tune-Up and System Optimization Program is available to qualifying commercial and industrial customers within our service territory. The goal of this program is to help customers identify opportunities to improve the efficiency in their buildings and reduce energy costs without adversely affecting facility or system operations. For the Building Tune-Up Program, offerings are project-by-project funding incentives that cover a portion of a energy analysis study and implementation of pre-approved measures. For the System Optimization program, offerings are incentives for covering the implemantation of pre-approved measures that optimize existing equipment to run at maximum efficiency and save energy with incentives based on total estimated annual energy savings. Examples of System Optimization measures include returning equipment to its proper operational state, optimizing the operation of chiller and other mechanical equipment, and adjusting and correcting operating schedules for equipment. \n\nWe may also provide incentives through other efficiency program offerings to the building owner to offset implementation costs for other recommended measures.  Projects must be able to show specific and verifiable energy savings and costs, typically developed by a third-party firm. Incentives will be determined by us on a project-by-project basis. EnergyWise for Your Business incentive payments are subject to project and customer eligibility and funds availability.\n\nFor each program year (December 1–November 30), EnergyWise for Your Business incentive payments are capped per Customer Federal Tax ID number at $150,000 per project type. Throughout the duration of the EnergyWise for Your Business program, for Building Tune-Up program, incentive payments are limited to a one-time payment per facility that does not exceed $0.25/sf. The incentive payments are included in the calculation of the overall $150,000. Details of the program may change without prior notice."]
[]
[null,"Eligible Participants",null,null,null,null,null,null,null,null,"Pre-Approval Requirements "]
[null,"EnergyWise for Your Business is open to all non-residential electric customers within the our service territory, except for customers eligible for Rate 23 and specific large retail customers who have elected to opt out of the Demand Side Management (DSM) programs by notifying us in writing using the Opt-Out form. ",null,null,null,null,null,null,null,null,"All Building Tune-Up and System Optimization projects require pre-approval prior to initiating a project. \n\nAfter the application has been pre-approved by us, the applicant will be notified in writing, assigned a project identification number, and given any specific instructions."]
[]
[]
[null,"Participation Instructions"]
[null,"Please review the program Terms and Conditions tab for all program rules and requirements. Tabs colored Blue should be filled in by applicant.  "]
[null,"Step 1"]
[null,null,"All Building Tune-Up and System Optimization applications require thorough and complete documentation for energy analysis and costs. Before beginning the application process, the customer or the contractor should check with an EnergyWise for Your Business representative to determine the eligibility of the proposed project and to establish requirements for detailed savings projections and cost estimates. This information must be submitted for review and evaluation of potential incentives. "]
[null,"Step 2"]
[null,null,"Applications will be processed and we will notify the customer in writing when the review is complete and funds have been reserved. \n"]
[null,"Step 3"]
[null,null,"Upon project completion, please return the signed customer acknowledgment at bottom of the pre-approval letter along with proof of purchase. Dominion Energy South Carolina will notify customers if an inspection of the facility is necessary prior to final payment processing.\nProof of purchase must include an itemized invoice for all Energy Conservation Measures (ECMs) that may qualify for the EnergyWise for Your Business incentive. \nEach individual product or model number must include the corresponding costs and quantity. Labor and material must be listed separately when labor is included in the Overall Project Costs."]
[null,"Step 4"]
[null,null,"Upon project completion, please return the signed customer acknowledgment at bottom of the pre-approval letter along with proof of purchase. Dominion Energy South Carolina will notify customers if an inspection of the facility is necessary prior to final payment processing.\nProof of purchase must include an itemized invoice for all Energy Conservation Measures (ECMs) that may qualify for the EnergyWise for Your Business incentive. \nEach individual product or model number must include the corresponding costs and quantity. Labor and material must be listed separately when labor is included in the Overall Project Costs."]
[]
[]
[null,"Questions","If you have questions, email EnergyExperts@SC.DominionEnergyAccount.com,",null,null,null,null,null,null,null,null,"visit  www.DominionEnergy.com/ForYourBizSC or call 877-784-7234."]

{"sheet":"Customer Information","index":1,"n_rows":46,"n_cols":17,"rows_kept":46,"cut":false,"hidden":false,"merged":[[3,0,3,2],[3,3,3,9],[3,10,3,12],[3,13,3,14],[4,0,4,2],[4,3,4,9],[4,10,4,12],[4,13,4,14],[0,0,0,14],[1,0,1,14],[2,0,2,2],[2,3,2,9],[2,10,2,12],[2,13,2,14],[7,0,7,14],[8,0,8,2],[8,3,8,14],[9,0,9,14],[10,0,10,2],[10,3,10,6],[10,8,10,9],[10,11,10,14],[5,0,5,2],[5,3,5,9],[5,13,5,14],[6,0,6,2],[6,3,6,9],[6,10,6,12],[6,13,6,14],[13,0,13,14],[14,0,14,14],[15,0,15,2],[15,3,15,14],[16,0,16,2],[16,3,16,14],[11,0,11,2],[11,3,11,9],[11,11,11,14],[12,0,12,2],[12,3,12,9],[12,11,12,14],[19,0,19,2],[19,3,19,9],[19,11,19,14],[20,0,20,14],[21,0,21,8],[21,9,21,14],[17,0,17,2],[17,3,17,6],[17,8,17,9],[17,11,17,14],[18,0,18,2],[18,3,18,9],[18,11,18,14],[22,0,22,14],[23,0,23,2],[23,3,23,14],[24,0,24,2],[24,3,24,14],[25,0,25,2],[25,3,25,6],[25,8,25,9],[25,11,25,14],[28,0,28,14],[26,0,26,2],[26,3,26,9],[26,11,26,14],[27,0,27,2],[27,3,27,9],[27,11,27,14],[29,0,29,14],[30,0,30,2],[30,3,30,8],[31,0,31,2],[31,3,31,8],[31,9,31,12],[31,13,31,14],[34,1,34,14],[36,0,36,14],[37,0,37,14],[38,0,38,14],[39,0,39,14],[32,0,32,2],[32,3,32,9],[32,11,32,14],[33,0,33,5],[33,6,33,9],[33,10,33,12],[33,13,33,14],[41,0,41,14],[42,0,42,14],[44,0,44,14],[40,0,40,14],[45,0,45,11]]}
["Dominion Energy South Carolina, Inc. (Fill in Blue and Orange Cells Only!)"]
["PROJECT INFORMATION"]
["Application Date",null,null,null,null,null,null,null,null,null,"Expected Completion Date"]
["Company Name",null,false,null,null,null,null,null,null,null,"Electric Account # "]
["Street Address (of the facility)  ",null,false,null,null,null,null,null,null,null,"Customer Federal Tax ID "]
["City",null,false,null,null,null,null,null,null,null,"State   "," SC","Zip  "]
["Building Type (select one)",null,false,null,null,null,null,null,null,null,"Please indicate \"other\" type:"]
["CUSTOMER CONTACT INFORMATION",null,false]
["Mailing Address:"]
["(where all correspondence will be mailed, including incentive check if payment is to the customer)"]
["City   ",null,null,null,null,null,null,"State   ",null,null,"Zip"]
["Contact Person     ",null,null,null,null,null,null,null,null,null,"Title"]
["Telephone No.       ",null,null,null,null,null,null,null,null,null,"Email"]
[]
["CONTRACTOR SERVICE PROVIDER INFORMATION"]
["Company Name  "]
["Street Address   "]
["City   ",null,null,null,null,null,null,"State   ",null,null,"Zip"]
["Contact Person     ",null,null,null,null,null,null,null,null,null,"Title"]
["Telephone No.       ",null,false,null,null,null,null,null,null,null,"Email"]
[]
["Please indicate if the Customer or Contractor should be primary point of contact for this project:"]
["ADDITIONAL PRIMARY POINT OF CONTACT (IF APPLICABLE)"]
["Company Name  "]
["Street Address   "]
["City   ",null,null,null,null,null,null,"State   ",null,null,"Zip  "]
["Contact Person     ",null,null,null,null,null,null,null,null,null,"Title"]
["Telephone No.       ",null,null,null,null,null,null,null,null,null,"Email "]
[]
["PAYMENT INFORMATION"]
["Payment to:"]
["Federal Tax ID # (of recipient)",null,null,null,null,null,null,null,null,"Tax Status of Recipient (select one)"]
["Customer Name",null,null,null,null,null,null,null,null,null,"Title"]
["Customer Signature  (if payment to contractor, Customer must type his/her name in the orange box to the right and check the box below)    ",null,null,null,null,null,null,null,null,null,"Date (XX/XX/XXXX)"]
[false,"I understand and intend that my electronic, PDF or facsimile signature be accepted and have the same force and effect as an original signature."]
[]
["Checklist & Acknowledgement"]
["APPLICATION CHECKLIST"]
["For faster application processing, please include the following items with your application:"]
["Complete application: (Customer Information tab and Project Information tab).",null,null,null,null,null,null,null,null,null,null,null,null,null,null,null,false]
["Electric account number at top of page. Attach copy of electric bill.",null,null,null,null,null,null,null,null,null,null,null,null,null,null,null,false]
["The most recent IRS Form W-9 completed for payment recipient. Physical signature is required on the W-9 Form. If payment is to a contractor, both the customer's and the contractor's W-9 Forms must be provided.",null,null,null,null,null,null,null,null,null,null,null,null,null,null,null,false]
["Supporting documentation to include manufacturer’s specification (cut) sheets for equipment included in this application.",null,null,null,null,null,null,null,null,null,null,null,null,null,null,null,false]
["Customer signature and proof of purchase (contractor receipts), at time of project completion. See Terms and Conditions for invoicing requirements.",null,null,null,null,null,null,null,null,null,null,null,null,null,null,null,false]
["Applications submitted for processing will be processed in the order in which they are received. Applicants will be notified as to their pre-approval status and/or any pre-inspection requirements within 20 business days from receipt of complete application. Applicants will be notified if post-installation inspections are required."]
["Dominion Energy South Carolina, Inc. Building Tune Up and System Optimization Application - Electronic Version",null,null,null,null,null,null,null,null,null,null,null,null,"Version",{"$f":"'Version Tracking'!B2","v":15.3}]

{"sheet":"Project Information","index":2,"n_rows":29,"n_cols":16,"rows_kept":29,"cut":false,"hidden":false,"merged":[[2,5,2,9],[16,0,16,2],[16,3,16,5],[16,6,16,8],[0,0,0,9],[3,0,3,9],[4,0,4,1],[4,7,4,9],[4,5,4,6],[4,2,4,4],[5,2,5,4],[6,2,6,4],[1,0,1,9],[2,0,2,4],[5,0,5,1],[5,7,5,9],[6,0,6,1],[6,7,6,9],[5,5,5,6],[6,5,6,6],[23,0,23,9],[17,0,17,9],[15,0,15,9],[7,0,7,9],[9,0,9,1],[9,3,9,6],[9,7,9,9],[8,0,8,7],[14,1,14,2],[10,4,10,6],[11,4,11,6],[12,4,12,6],[27,1,27,9],[18,0,19,9],[21,0,22,9],[20,0,20,9],[28,0,28,5],[24,0,24,9],[25,0,26,1],[25,2,26,3],[25,4,25,5],[25,6,25,9],[26,4,26,6],[26,7,26,9],[13,4,13,6],[14,4,14,6],[10,1,10,2],[11,1,11,2],[12,1,12,2],[13,1,13,2],[10,8,10,9],[11,8,11,9],[12,8,12,9],[13,8,13,9],[14,8,14,9]]}
["Fill in Blue and Orange Cells Only!"]
["PROJECT TYPE"]
["Which incentive are you pursuing with this application?"]
["FACILITY INFORMATION"]
["Year of Construction:",null,null,null,null,"Number of Floors:"]
["Total Floor Area (sq. ft.):",null,null,null,null,"Total Conditioned Area (sq. ft.):"]
["Annual kWh Usage:",null,null,null,null,"Peak kW and Month Occuring: "]
["HVAC INFORMATION"]
["Check all of the HVAC system(s) in the facility."]
["Cooling Systems",null,null,"Heating Systems",null,null,null,"Ventilaton & Distribution",null,null,null,null,null,null,null,"yes"]
[false,"Chiller",null,false,"Boiler, Hot Water",null,null,false,"Central AHU"]
[false,"Chiller Water Cooled",null,false,"Boiler Steam",null,null,false,"VAV and Reheat"]
[false,"Water Source Heat Pump",null,false,"Rooftop Furnace",null,null,false,"Dual Duct"]
[false,"Condenser",null,false,"Electric Baseboard",null,null,false,"Economizers"]
[false,"Other",null,false,"Other",null,null,false,"Other"]
["FACILITY CONTROL SYSTEMS"]
["Age of Energy Management Controls System (EMCS)",null,null,null,null,null,"Capable of trending and storing multiple points? "]
["Components and systems controlled by digital direct controls (DDC):"]
[]
[]
["Components controlled (not actuated) by pneumatics:"]
[]
[]
["CUSTOMER ACKNOWLEDGMENT"]
["CUSTOMER ACKNOWLEDGMENT"]
["Authorized Representative  ",null,null,null,"Title"]
[null,null,null,null,"Date (XX/XX/XXXX)"]
[false,"By checking this box and typing my name, I hereby certify that all statements made on this application are correct to the best of my knowledge and that I have read and agree to the Terms and Conditions. Furthermore, I understand and intend that my electronic, PDF or facsimile signature be accepted and have the same force and effect as an original signature.\nNote: Upon completion of project, Dominion Energy South Carolina, Inc. customer of record must sign and return the written pre-approval letter and provide invoices for all energy efficiency measures."]
[" Building Tune Up and System Optimization Application - Electronic Version",null,null,null,null,null,null,null,null,{"$f":"\"Version # \"&'Version Tracking'!B2","v":"Version # 15.3"}]

{"sheet":"Building Tune Up Input","index":3,"n_rows":25,"n_cols":12,"rows_kept":25,"cut":false,"hidden":true,"merged":[[1,5,1,8],[2,6,2,7],[5,1,5,5],[5,6,5,7],[5,8,5,11],[9,6,9,7],[9,8,9,9],[10,1,10,2],[10,3,10,5],[6,1,6,2],[6,3,6,5],[6,6,6,7],[6,8,6,11],[7,1,7,2],[7,3,7,5],[7,6,7,7],[7,8,7,11],[8,6,8,7],[8,8,8,11],[8,1,8,2],[8,3,8,5],[10,10,10,11],[11,3,11,5],[11,6,11,7],[11,8,11,9],[13,6,14,6],[11,1,11,2],[10,6,10,7],[25,1,29,11],[9,1,9,2],[9,3,9,5],[16,1,16,4],[17,1,17,4],[21,1,21,4],[18,1,18,6],[19,1,19,6],[20,1,20,6],[13,1,14,4],[15,1,15,4],[24,1,24,11],[13,7,14,7],[13,5,14,5]]}
[]
[null,null,null,null,null," Building Tune Up Program\nMeasure Qualification Tool"]
[null,null,null,null,null,null,"Version # 15.1",null,null,null,"Date:","2012-02-29"]
[null,null,"Copyright © 2011 ICF Resources, LLC, All Rights Reserved. Do not copy, distribute or quote without ICF’s written permission."]
[]
[null,"General Project Information",null,null,null,null,"SCE&G Project Number:"]
[null,"Project Name:",null,null,null,null,"Customer Name:"]
[null,"Project Type:",null,null,null,null,"Project Address:"]
[null,"ASHRAE Level 1 Cost:",null,null,null,null,"Project City:"]
[null,"ASHRAE Level 2 Cost:",null,null,null,null,"Customer Contact:",null,null,null,"Title:"]
[null,"Implementation Cost:",null,null,null,null,"Phone:",null,null,"Email:"]
[null,"Building SF:",null,null,null,null,"Electric Account No:",null,null,null,"SCE&G Rate:"]
[]
[null,"Building Tune Up",null,null,null,"Step Completed","Incentive Rate per Step \n(per SF)","Incentives"]
[]
[null,"ASHRAE Level 1 Audit",null,null,null,null,null,{"$f":"IF(F16=\"Yes\",G16*$D$12,0)","v":0}]
[null,"ASHRAE Level 2 Audit",null,null,null,null,null,{"$f":"G17*$D$12","v":0}]
[null,"All Measures Implemented Under 18 months SPB",null,null,null,null,null,0]
[null,"Total SF Based Potential Incentive",null,null,null,null,null,{"$f":"SUM(H16:H18)","v":0}]
[null,"75% of Audit Cost",null,null,null,null,null,{"$f":"0.75*SUM(D9:F11)","v":0}]
[null,"Final Incentive",null,null,null,null,null,{"$f":"MIN(H19:H20)","v":0}]
[]
[]
[]
[null,"NOTES: "]

{"sheet":"System Optimization Input","index":4,"n_rows":28,"n_cols":12,"rows_kept":28,"cut":false,"hidden":true,"merged":[[6,1,6,2],[6,3,6,5],[6,6,6,7],[6,8,6,11],[1,5,1,8],[2,6,2,7],[5,1,5,5],[5,6,5,7],[5,8,5,11],[7,1,7,2],[7,3,7,5],[7,6,7,7],[7,8,7,11],[8,6,8,7],[8,8,8,11],[14,9,15,9],[14,7,15,7],[9,6,9,7],[9,8,9,9],[10,6,10,7],[14,8,15,8],[13,7,13,8],[10,10,10,11],[8,1,8,2],[8,3,8,5],[11,6,11,7],[11,8,11,9],[27,1,27,11],[28,1,32,11],[17,1,17,4],[18,1,18,4],[19,1,19,4],[20,1,20,4],[21,1,21,4],[23,1,23,4],[24,1,24,4],[16,1,16,4],[14,1,15,4],[14,5,15,5],[14,6,15,6],[22,1,22,4]]}
[]
[null,null,null,null,null," System Optimization Program\nMeasure Qualification Tool"]
[null,null,null,null,null,null,"Version # 15.1",null,null,null,"Date:","2012-02-29"]
[null,null,"Copyright © 2011 ICF Resources, LLC, All Rights Reserved. Do not copy, distribute or quote without ICF’s written permission."]
[]
[null,"General Project Information",null,null,null,null,"SCE&G Project Number:"]
[null,"Project Name:",null,null,null,null,"Customer Name:"]
[null,"Project Type:",null,null,null,null,"Project Address:"]
[null,"Building SF:",null,null,null,null,"Project City:"]
[null,null,null,null,null,null,"Customer Contact:",null,null,null,"Title:"]
[null,null,null,null,null,null,"Phone:",null,null,"Email:"]
[null,null,null,null,null,null,"Electric Account No:",null,null,null,"SCE&G Rate:"]
[]
[null,null,null,null,null,null,null,"Project Costs"]
[null,"System Optimization Name",null,null,null,"kWh Savings","Winter Peak kW Savings","Material Cost","Labor Cost","Potential Incentive"]
[]
[1,"Measure 1",null,null,null,null,null,null,null,{"$f":"MIN(F17*Lookups!$C$17,SUM(H17:I17)*Lookups!$C$18)","v":0}]
[2,"Measure 2",null,null,null,null,null,null,null,{"$f":"MIN(F18*Lookups!$C$17,SUM(H18:I18)*Lookups!$C$18)","v":0}]
[3,"Measure 3",null,null,null,null,null,null,null,{"$f":"MIN(F19*Lookups!$C$17,SUM(H19:I19)*Lookups!$C$18)","v":0}]
[4,"Measure 4",null,null,null,null,null,null,null,{"$f":"MIN(F20*Lookups!$C$17,SUM(H20:I20)*Lookups!$C$18)","v":0}]
[5,"Measure 5",null,null,null,null,null,null,null,{"$f":"MIN(F21*Lookups!$C$17,SUM(H21:I21)*Lookups!$C$18)","v":0}]
[6,"Measure 6",null,null,null,null,null,null,null,{"$f":"MIN(F22*Lookups!$C$17,SUM(H22:I22)*Lookups!$C$18)","v":0}]
[7,"Measure 7",null,null,null,null,null,null,null,{"$f":"MIN(F23*Lookups!$C$17,SUM(H23:I23)*Lookups!$C$18)","v":0}]
[8,"Measure 8",null,null,null,null,null,null,null,{"$f":"MIN(F24*Lookups!$C$17,SUM(H24:I24)*Lookups!$C$18)","v":0}]
[null,"Total",null,null,null,{"$f":"SUM(F17:F24)","v":0},{"$f":"SUM(G17:G24)","v":0},0,0,{"$f":"MIN(150000,SUM(J17:J24))","v":0}]
[]
[]
[null,"NOTES: "]

{"sheet":"Lookups","index":5,"n_rows":18,"n_cols":10,"rows_kept":18,"cut":false,"hidden":true,"merged":[]}
[]
[null,"Rates","Base  or Off Peak kWh"," High Sum kWh","High Win kWh","High Avg kWh","AVG kWh","Sum Demand (kVA)","Win Demand (kVA)","AVG Demand Value  (kW @ 0.9 PF)"]
[null,"3 - Muni",0.11131000000000001,null,null,null,{"$f":"C3","v":0.11131000000000001},0,null,{"$f":"H3","v":0}]
[null,"9 - GS",null,0.12706999999999999,0.13533000000000001,{"$f":"(D4/3)+(2*E4/3)","v":0.13257666666666668},{"$f":"F4","v":0.13257666666666668},4.05,0,{"$f":"H4*0.85","v":3.4424999999999999}]
[null,"14 - Farm Serv",null,0.13966000000000001,0.1535,0.14888666666666667,{"$f":"F5","v":0.14888666666666667},0,null,{"$f":"H5","v":0}]
[null,"16 - GS TOU",0.11964,0.21349000000000001,0.21349000000000001,0.21349000000000001,{"$f":"AVERAGE(F6,C6)","v":0.16656500000000002},0,0,{"$f":"((H6/3)+(2*I6/3))*0.9","v":0}]
[null,"20 - Med GS",null,5.339E-2,5.0439999999999999E-2,5.1423333333333335E-2,{"$f":"AVERAGE(F7,C7)","v":5.1423333333333335E-2},19.5,null,{"$f":"H7*0.85","v":16.574999999999999}]
[null,"21 - GS TOU",5.0720000000000001E-2,8.5180000000000006E-2,8.5180000000000006E-2,8.5180000000000006E-2,{"$f":"AVERAGE(F8,C8)","v":6.795000000000001E-2},20.3,20.3,{"$f":"((H8/3)+(2*I8/3))*0.9","v":18.27}]
[null,"21A - Exp GS TOU",4.086E-2,7.739E-2,5.0950000000000002E-2,5.9763333333333335E-2,{"$f":"AVERAGE(F9,C9)","v":5.0311666666666671E-2},21.16,12.69,{"$f":"((H9/3)+(2*I9/3))*0.9","v":13.962}]
[null,"22 - School",null,0.1115,0.13522999999999999,0.12731999999999999,{"$f":"AVERAGE(F10,C10)","v":0.12731999999999999},0,null,{"$f":"H10","v":0}]
[null,"23 - Industrial",4.9020000000000001E-2,null,null,null,{"$f":"C11","v":4.9020000000000001E-2},null,null,15.05]
[null,"24 - Lrg GS",4.4580000000000002E-2,8.9109999999999995E-2,8.9109999999999995E-2,{"$f":"(D12/3)+(2*E12/3)","v":8.9109999999999995E-2},{"$f":"AVERAGE(F12,C12)","v":6.6845000000000002E-2},16.79,16.79,{"$f":"((H12/3)+(2*I12/3))","v":16.79}]
[]
[]
[]
[]
[null,"Incentive Rate",0.1,"/kWh"]
[null,"Project Cap SO",0.75]

{"sheet":"Sheet1","index":6,"n_rows":0,"n_cols":0,"rows_kept":0,"cut":false,"hidden":true,"merged":[]}

{"sheet":"ProjectInfo Validation","index":7,"n_rows":168,"n_cols":7,"rows_kept":168,"cut":false,"hidden":true,"merged":[]}
["Building Type","Primary Contact","Tax Status","Payment To","Cities",null,"Project Type"]
["Convenience/C-store","Customer","Corporation","Customer","Adams Run",null,"Building Tune-Up"]
["Fitness/Recreation","Contractor","LLC","Contractor","Aiken",null,"System Optimization"]
["Grocery","Other (fill out below)","Partnership",null,"Allendale"]
["Health Facility",null,"Individual Propiertorship",null,"Arlington Estates"]
["Industrial",null,"Not for Profit",null,"Awendaw"]
["Lodging",null,null,null,"Bamberg"]
["Multifamily",null,null,null,"Barnwell"]
["Office",null,null,null,"Batesburg Leesville"]
["Religious Facility",null,null,null,"Bath"]
["Restaurant",null,null,null,"Beaufort"]
["Retail",null,null,null,"Beech Island"]
["School (K-12)",null,null,null,"Blackville"]
["School (University/College)",null,null,null,"Blair"]
["Warehouse",null,null,null,"Bluffton"]
["Other",null,null,null,"Blythewood"]
[null,null,null,null,"Bowman"]
[null,null,null,null,"Branchville"]
[null,null,null,null,"Brunson"]
[null,null,null,null,"Calhoun Falls"]
[null,null,null,null,"Cameron"]
[null,null,null,null,"Canadys"]
[null,null,null,null,"Carlisle"]
[null,null,null,null,"Cayce"]
[null,null,null,null,"Chapin"]
[null,null,null,null,"Chappels"]
[null,null,null,null,"Charleston"]
[null,null,null,null,"Childs"]
[null,null,null,null,"Clarks Hill"]
[null,null,null,null,"Columbia"]
[null,null,null,null,"Coosawatchie"]
[null,null,null,null,"Cope"]
[null,null,null,null,"Cottageville"]
[null,null,null,null,"Cross"]
[null,null,null,null,"Cross Roads"]
[null,null,null,null,"Daniel Island"]
[null,null,null,null,"Daufuskie Island"]
[null,null,null,null,"Denmark"]
[null,null,null,null,"Dorchester"]
[null,null,null,null,"Early Branch"]
[null,null,null,null,"East Lake Hills"]
[null,null,null,null,"Eastover"]
[null,null,null,null,"Edgefield"]
[null,null,null,null,"Edisto Island"]
[null,null,null,null,"Ehrhardt"]
[null,null,null,null,"Elgin"]
[null,null,null,null,"Elko"]
[null,null,null,null,"Elloree"]
[null,null,null,null,"Estill"]
[null,null,null,null,"Eutawville"]
[null,null,null,null,"Fairfax"]
[null,null,null,null,"Folly Beach"]
[null,null,null,null,"Fort Motte"]
[null,null,null,null,"Furman"]
[null,null,null,null,"Garnett"]
[null,null,null,null,"Gaston"]
[null,null,null,null,"Gifford"]
[null,null,null,null,"Gilbert"]
[null,null,null,null,"Gloverville"]
[null,null,null,null,"Goose Creek"]
[null,null,null,null,"Graniteville"]
[null,null,null,null,"Grays Hill"]
[null,null,null,null,"Green Pond"]
[null,null,null,null,"Hampton"]
[null,null,null,null,"Hanahan"]
[null,null,null,null,"Hardeeville"]
[null,null,null,null,"Harleyville"]
[null,null,null,null,"Hilda"]
[null,null,null,null,"Holly Hill"]
[null,null,null,null,"Hollywood"]
[null,null,null,null,"Hopkins"]
[null,null,null,null,"Irmo"]
[null,null,null,null,"Isle of Palms"]
[null,null,null,null,"Jackson"]
[null,null,null,null,"Jacksonboro"]
[null,null,null,null,"James Island"]
[null,null,null,null,"Jenkinsville"]
[null,null,null,null,"Johns Island"]
[null,null,null,null,"Johnston"]
[null,null,null,null,"Ladson"]
[null,null,null,null,"Ladys Island"]
[null,null,null,null,"Langley"]
[null,null,null,null,"Leesville"]
[null,null,null,null,"Lexington"]
[null,null,null,null,"Lincolnville"]
[null,null,null,null,"Little Mountain"]
[null,null,null,null,"Livingston"]
[null,null,null,null,"Lobeco"]
[null,null,null,null,"Lodge"]
[null,null,null,null,"Lugoff"]
[null,null,null,null,"Luray"]
[null,null,null,null,"Martin"]
[null,null,null,null,"Mc Clellanville"]
[null,null,null,null,"Mc Cormick"]
[null,null,null,null,"Modoc"]
[null,null,null,null,"Moncks Corner"]
[null,null,null,null,"Monetta"]
[null,null,null,null,"Montmorenci"]
[null,null,null,null,"Mount Carmel"]
[null,null,null,null,"Mount Pleasant"]
[null,null,null,null,"Muphys Estates"]
[null,null,null,null,"Newberry"]
[null,null,null,null,"North"]
[null,null,null,null,"North Augusta"]
[null,null,null,null,"North Charleston"]
[null,null,null,null,"Northeast"]
[null,null,null,null,"Norway"]
[null,null,null,null,"Oakridge"]
[null,null,null,null,"Okatie"]
[null,null,null,null,"Olar"]
[null,null,null,null,"Olympia"]
[null,null,null,null,"Orangeburg"]
[null,null,null,null,"Parksville"]
[null,null,null,null,"Peak"]
[null,null,null,null,"Pelion"]
[null,null,null,null,"Perry"]
[null,null,null,null,"Pineland"]
[null,null,null,null,"Pomaria"]
[null,null,null,null,"Pontiac"]
[null,null,null,null,"Port Royal"]
[null,null,null,null,"Prosperity"]
[null,null,null,null,"Ravenel"]
[null,null,null,null,"Reevesville"]
[null,null,null,null,"Ridge Spring"]
[null,null,null,null,"Ridgeland"]
[null,null,null,null,"Ridgeville"]
[null,null,null,null,"Ridgeway"]
[null,null,null,null,"Rosewood"]
[null,null,null,null,"Round O"]
[null,null,null,null,"Rowesville"]
[null,null,null,null,"Ruffin"]
[null,null,null,null,"Saint George"]
[null,null,null,null,"Saint Helena Island"]
[null,null,null,null,"Saluda"]
[null,null,null,null,"Santee"]
[null,null,null,null,"Scotia"]
[null,null,null,null,"Seabrook"]
[null,null,null,null,"Sheldon"]
[null,null,null,null,"Sieglers Crossroads"]
[null,null,null,null,"Smoaks"]
[null,null,null,null,"Springfield"]
[null,null,null,null,"State Park"]
[null,null,null,null,"Sullivans Island"]
[null,null,null,null,"Summerville"]
[null,null,null,null,"Swansea"]
[null,null,null,null,"Sycamore"]
[null,null,null,null,"Tillman"]
[null,null,null,null,"Trenton"]
[null,null,null,null,"Troy"]
[null,null,null,null,"Ulmer"]
[null,null,null,null,"Union"]
[null,null,null,null,"University Park"]
[null,null,null,null,"Vance"]
[null,null,null,null,"Varnville"]
[null,null,null,null,"Vaucluse"]
[null,null,null,null,"Wagener"]
[null,null,null,null,"Walterboro"]
[null,null,null,null,"Ward"]
[null,null,null,null,"Warrenville"]
[null,null,null,null,"West Columbia"]
[null,null,null,null,"White Hall"]
[null,null,null,null,"White Rock"]
[null,null,null,null,"Wildwood"]
[null,null,null,null,"Williams"]
[null,null,null,null,"Williston"]
[null,null,null,null,"Windsor"]
[null,null,null,null,"Winnsboro"]
[null,null,null,null,"Yemassee"]

{"sheet":"Terms and Conditions","index":8,"n_rows":8,"n_cols":4,"rows_kept":8,"cut":false,"hidden":false,"merged":[[1,0,1,1],[7,1,7,2],[0,0,0,1]]}
["Dominion Energy South Carolina, Inc."]
["Terms and Conditions"]
[]
[]
[null,null,null," ."]
[]
["\n"]
[null,{"$f":"\"Version # \"&'Version Tracking'!B2","v":"Version # 15.3"}]

{"sheet":"Requirements & Incentives","index":9,"n_rows":68,"n_cols":37,"rows_kept":68,"cut":false,"hidden":false,"merged":[[5,0,5,8],[0,0,0,8],[1,0,1,8],[23,1,23,8],[17,1,17,8],[18,1,18,8],[19,1,19,8],[20,1,20,8],[6,0,6,8],[7,0,7,8],[10,3,10,7],[11,3,11,7],[12,3,12,7],[9,3,9,7],[10,1,13,1],[10,2,13,2],[63,0,63,8],[64,0,64,8],[65,0,65,8],[40,1,40,8],[59,0,59,8],[48,1,48,8],[49,1,49,8],[50,1,50,8],[51,1,51,8],[52,1,52,8],[53,1,53,8],[56,1,56,8],[58,1,58,8],[57,0,57,8],[55,0,55,8],[46,0,46,8],[13,3,13,7],[60,1,60,8],[62,0,62,8],[39,0,39,8],[37,1,37,7],[38,1,38,7],[41,0,41,8],[42,1,42,8],[43,0,43,8],[44,1,44,8]]}
["Dominion Energy South Carolina, Inc. "]
[" TECHNICAL REQUIREMENTS & INCENTIVES"]
[null,null,null,null,"Jump To: "]
[null,null,null,"System Optimization",0,"Building Tune-Up"]
[]
["System Optimization"]
["Optimize your existing equipment to run at maximum efficiency and save energy with incentives based on total estimated annual energy savings. Examples of System Optimization options include returning equipment to its proper operational state, optimizing the operation of chiller and other mechanical equipment, and adjusting and correcting operating schedules for equipment. "]
["System Optimization projects may qualify for up to $150,000 under the Custom Project type each program year, not to exceed 75% of total project costs. Individual equipment can only be considered for optimization incentives once every three years."]
[" "]
[null,"Measure Description ","Incentive/Unit ","Requirements "]
[null,"System Optimization ","$0.10/kWh saved in the first 12 months after the project is completed;                                                   Up to 75% of the total project costs","•  Test-in and test-out measurements and inspections are required. Fields for measurements can be determined on an individual project   \n   basis working with the Program Team* "]
[null,null,null,"•  Incentives are based on verifiable energy savings calculation and cannot be based on assumed percent reductions "]
[null,null,null,"•  Project incentives will be determined by Dominion Energy South Carolina program staff after the application is submitted "]
[]
[]
[null,"*Projects plans must be submitted prior to work being started in order to determine program test-in measurements and any required inspections to be completed. "]
["Eligible projects must involve the optimization of equipment that meets the following criteria "]
["•","Produces a measurable and verifiable reduction in electricity consumption "]
["•","Achieve savings through equipment maintenance, re-commissioning or operational changes, without an equipment upgrade "]
["•","Equipment must be at least 2 years old "]
["•","Required two-year commitment on any revised scheduling change or revised practice "]
[]
["Measures that are not eligible for the program incentive include those that "]
["•","Involve relocating existing equipment or processes outside of Dominion Energy South Carolina’s service territory "]
["•","Produce an electric energy reduction through substitution of another energy source for electricity "]
["•","Are eligible for an incentive through any other energy efficiency program offered by Dominion Energy South Carolina "]
["This program offers incentives for a variety of System Optimization applications, including but not limited to "]
["•","Modifying control systems programming "]
["•","Lighting on/off switching with rewiring "]
["•","Ventilation changes: cleaning and replacing filters, tightening or replacing belt drives on fans, eliminating duct leakage "]
["•","Space cooling: repairing or addition of chilled water pipe insulation and HVAC Tune-Ups** "]
["•","Space heating: reducing thermostat set points for unoccupied periods and repairing / modifying controls on electric space heaters "]
["•","Eliminating simultaneous heating and cooling "]
["•","Implement Demand Control Ventilation "]
["•","Water heating: reducing thermostat set points "]
["•","Multiple End Uses: Modifying EMS scheduling, assigning new points as necessary, calibrating / replacing sensors "]
["System Optimization Service Providers must notify the program team before submitting a project. "]
["•","Each Contractor must speak with a Program engineer on staff before their first project is submitted and must provide a list of measures offered and the assumptions used for capturing electric usage savings. "]
["•","When a System Optimization Contractor offers a new measure or a new calculation for savings they must discuss the change and/or calculation with a Program engineer."]
["All projects must comply with the Terms & Conditions. Additional program rules are available at www.DominionEnergy.com/ForYourBizSC For System Optimization projects, one must apply for preapproval prior to making improvements. New equipment purchases and upgrades may be eligible for incentives under the EnergyWise for Your Business. "]
[null,"**HVAC Tune-Ups cannot be a stand-alone measure and must be completed along with other System Optimization measure(s). "]
["Step 1 - Application Phase"]
[null,"Before beginning the application process, the customer or energy professional should contact an EnergyWise representative to discuss the application process, project eligibility, and the customer’s need for System Optimization services. A completed Building Tune-Up and System Optimization application and list of measures with energy savings calculations for System Optimization are then submitted to Dominion Energy South Carolina for review and pre-approval."]
["Step 2 - Implementation Phase"]
[null,"In the Implementation Phase, the customer and/or energy professional implements the system optimization measures identified and pre-approved for incentive monies. We will provide $0.10/kWh saved in the first 12 months after the project is completed and contribute up to 75% of the cost of the implementation of the pre-approved measures. \nThe customer or energy professional shall document energy savings achievements. The customer will notify us upon completion of the project. We will perform an on-site inspection to ensure the System Optimization measures' energy savings are being realized.\n\nProof of purchase must include an itemized invoice for all Energy Conservation Measures (ECMs) that may qualify for the EnergyWise for Your Business incentive. Each individual product or model number must include the corresponding costs and quantity. After a thorough review of all documentation, final project approval is issued, and the incentive will be processed. "]
[]
["Building Tune-Up"]
["The criteria for participation in the Building Tune-Up program are:"]
["•","High electric use intensity (per the EPA Portfolio manager or similar standard)."]
["•","Building is over 2 years old (this requirement recognizes that buildings less than 2 years old may not have the requisite full year of utility data that reflect a “fully occupied\" building and consistent operating pattern)."]
["•","Building has an Energy Management System (EMS)."]
["•","Mechanical equipment in relatively good condition (i.e. not near end of useful life)."]
["•","Demonstrated management commitment to implement low-/no-cost measures.  "]
["•","Storage and warehouse facilities, unless designated as \"Cold Storage,\" are not eligible for the program. If a building has had a Building Tune-Up in the last three years, the building is not eligible for Building Tune-Up incentives."]
[]
["Step 1 - Application Phase"]
[null,"Before beginning the application process, the customer and Certified Energy Auditor, qualified engineer (Building Tune-Up Service Provider-BTSP) or energy professional should contact an EnergyWise representative to discuss the application process, project eligibility, and the customer’s need for Building Tune-Up services. A preliminary walk through is conducted by the BTSP, and an initial benchmarking report referred to as an opportunity checklist is completed. A completed Building Tune-Up and System Optimization application and opportunity checklist is then submitted to Dominion Energy South Carolina for review. We will evaluate the application and determine if the project should move forward to the study phase.  "]
["Step 2 - Study Phase"]
[null,"Once we provide pre-approval of the Building Tune-Up and System Optimization application, the BTSP will conduct a more detailed walk-through assessment, quantify Building Tune-Up opportunities and develop a master list of findings. The BTSP will aggregate this information into an action plan. The proposed Building Tune-Up measures detailed in the action plan will be reviewed with the customer and Dominion Energy South Carolina. Upon final agreement of the action plan, the customer and BTSP will move forward to the Implementation Phase.  If the study phase does not identify viable no cost/low cost measures, the customer will receive $.05/square foot, to assist with cost of the study phase. "]
["Step 3 - Implementation Phase"]
[null,"In the Implementation Phase, the customer and/or BTSP implements the Building Tune-Up measures identified in the Action Plan. Customer are encouraged to implement identified measures with a payback ≤ 1.5 years and are required to match our contribution for implementation of these measures. We will contribute up to 75% of the cost of the assessment and implementation of low-cost measures. \nThe BTSP shall document savings achievements. The customer will notify us upon completion of the project. We will perform an on-site inspection to ensure the action plan was followed and energy savings are being realized.\nProof of purchase must include an itemized invoice for all Energy Conservation Measures (ECMs) that may qualify for the EnergyWise for Your Business incentive. Each individual product or model number must include the corresponding costs and quantity. After a thorough review of all documentation, final project approval is issued, and the incentive will be processed. "]
["Building Tune-Up Pre-Application Survey"]
["Are you willing to commit up to $0.25/sf for your share of study and measure implementation?",null,null,null,null,null,null,null,null,null,null,null,null,null,null,null,null,null,null,null,null,null,false,null,null,null,null,null,null,null,null,null,null,null,null,null,false]
["Are you able to complete the installation of identified Building Tune-up measures within six months of receiving an action plan?\n   (Incentives may be foregone and/or the full Building Tune-Up service cost incurred to date may be imposed on the customer for non-implementation of measures).",null,null,null,null,null,null,null,null,null,null,null,null,null,null,null,null,null,null,null,null,null,false,null,null,null,null,null,null,null,null,null,null,null,null,null,false]
["Are you willing to commit the necessary time and personnel resources to fully support the Building Tune-Up process?",null,null,null,null,null,null,null,null,null,null,null,null,null,null,null,null,null,null,null,null,null,false,null,null,null,null,null,null,null,null,null,null,null,null,null,false]
["Are you free from planned major system renovations or retrofits?",null,null,null,null,null,null,null,null,null,null,null,null,null,null,null,null,null,null,null,null,null,false,null,null,null,null,null,null,null,null,null,null,null,null,null,false]
[]
[null,null,null,null,null,null,null,"Version #",{"$f":"'Version Tracking'!B2","v":15.3}]

{"sheet":"Version Tracking","index":10,"n_rows":13,"n_cols":5,"rows_kept":13,"cut":false,"hidden":true,"merged":[]}
[]
["current",{"$f":"LOOKUP(2,1/(B1:B50001<>\"\"),B1:B50001)","v":15.3}]
[null,"Version","Notes","Date","Updated By"]
[null,1,"Creation of Excel BT Application","2017-02-06","Joy Zins"]
[null,1.1000000000000001,"Revised incentive language","2018-03-27","Rick Campana"]
[null,10.1,"Updated Dominion Branding and T&Cs","2020-08-28","JSE"]
[null,10.199999999999999,"Updated Eligibilty and T&Cs - 100K/project type","2021-02-03","JSE"]
[null,10.4,"Updated Eligibilty, T&Cs, invoice rqmts, & version numberfor ap syncing","2022-08-08","Liv Stewart"]
[null,10.5,"Updated email to dominionenergy.com","2023-09-13","JSE"]
[null,14.1,null,"2023-11-15","TKJ"]
[null,14.3,"Updated email to EnergyExperts@SC.DominionEnergyAccount.com","2024-03-25","LS"]
[null,15.1,"Updated format and added Checkbox for System Optimization\nChanged review sheets and updated avoided costs.","2025-03-17","LS/Jon Eicher"]
[null,15.3,"Version Alignment","2025-09-16","LL"]